fUST/lending_fUST_20250918
["ID","MTS","AMOUNT","RATE_DAILY","PERIOD"]
[385904391,1758124811976,449.91638099,0.00023276,3]
[385904392,1758124815526,480.0,0.00023276,3]
[385904393,1758124817581,216.44,0.00023276,3]
[385904394,1758124818376,480.0,0.00023276,3]
[385904395,1758124820561,150.0,0.00021557,2]
[385904396,1758124821126,150.0,0.00022583,2]
[385904397,1758124823567,480.0,0.00023276,3]
[385904398,1758124839936,480.0,0.00023276,3]
[385904399,1758124842183,480.0,0.00023276,3]
[385904400,1758124842763,451.89421521,0.00023276,3]
[385904401,1758124843909,480.0,0.00023276,3]
[385904402,1758124845353,480.0,0.00023276,3]
[385904403,1758124849081,170.34937116,0.00023276,3]
[385904404,1758124853305,480.0,0.00023276,3]
[385904405,1758124854401,480.0,0.00023276,3]
[385904406,1758124855226,480.0,0.00023276,3]
[385904407,1758124855332,257.51,0.00023276,3]
[385904408,1758124857060,480.0,0.00023276,3]
[385904409,1758124857795,480.0,0.00023276,3]
[385904410,1758124859304,480.0,0.00023276,3]
[385904411,1758124861116,480.0,0.00023276,3]
[385904412,1758124865091,300.0,0.00023276,2]
[385904413,1758124866953,480.0,0.00023276,3]
[385904414,1758124867570,480.0,0.00023276,3]
[385904415,1758124869700,480.0,0.00023276,3]
[385904416,1758124872181,183.67,0.00023276,3]
[385904417,1758124872848,480.0,0.00023276,3]
[385904418,1758124881151,480.0,0.00023276,3]
[385904419,1758124883160,480.0,0.00023276,3]
[385904420,1758124885300,480.0,0.00023276,3]
[385904421,1758124885859,480.0,0.00023276,3]
[385904422,1758124891604,480.0,0.00023276,3]
[385904423,1758124894928,480.0,0.00023276,3]
[385904424,1758124895293,150.0,0.00021575,2]
[385904425,1758124895727,150.0,0.00022602,2]
[385904426,1758124898235,1054.95,0.00023276,3]
[385904427,1758124901246,480.0,0.00023276,3]
[385904428,1758124906401,195.4538546,0.00023276,3]
[385904429,1758124908048,609.31,0.00023276,3]
[385904430,1758124909482,480.0,0.00023276,3]
[385904431,1758124913037,721.29,0.00023276,3]
[385904432,1758124913630,480.0,0.00023276,3]
[385904433,1758124917795,480.0,0.00023276,3]
[385904434,1758124923132,300.0,0.00023276,2]
[385904435,1758124924809,500.0,0.00023276,3]
[385904436,1758124927108,480.0,0.00023276,3]
[385904437,1758124931418,480.0,0.00023276,3]
[385904438,1758124934539,480.0,0.00023276,3]
[385904439,1758124942066,480.0,0.00023276,3]
[385904440,1758124942955,480.0,0.00023276,3]
[385904441,1758124945325,181.4,0.00023276,3]
[385904442,1758124952355,298.99810247,0.00023276,3]
[385904443,1758124959683,480.0,0.00023276,3]
[385904444,1758124960767,480.0,0.00023276,3]
[385904445,1758124962882,150.0,0.000217,2]
[385904446,1758124963390,150.0,0.00022734,2]
[385904447,1758124965040,480.0,0.00023276,3]
[385904448,1758124968173,480.0,0.00023276,3]
[385904449,1758124970173,525.78696221,0.00023276,2]
[385904450,1758124970931,480.0,0.00023276,3]
[385904451,1758124972842,480.0,0.00023276,3]
[385904452,1758124976397,500.0,0.00023276,3]
[385904454,1758124983183,300.0,0.00023276,2]
[385904455,1758124983608,480.0,0.00023276,3]
[385904456,1758124987547,480.0,0.00023276,3]
[385904457,1758124989586,480.0,0.00023276,3]
[385904458,1758125006890,480.0,0.00023276,3]
[385904459,1758125012407,480.0,0.00023276,3]
[385904460,1758125014626,480.0,0.00023276,3]
[385904461,1758125021572,605.22,0.00023276,3]
[385904462,1758125022923,480.0,0.00023276,3]
[385904463,1758125031335,150.0,0.00021706,2]
[385904464,1758125031811,150.0,0.00022739,2]
[385904465,1758125035835,480.0,0.00023276,3]
[385904466,1758125040671,480.0,0.00023276,3]
[385904467,1758125041282,480.0,0.00023276,3]
[385904468,1758125043596,300.0,0.00023276,2]
[385904469,1758125045321,2579.15,0.00023276,3]
[385904470,1758125046237,512.92,0.00023276,3]
[385904471,1758125046654,430.64252563,0.00023276,3]
[385904472,1758125046941,480.0,0.00023276,3]
[385904473,1758125051275,480.0,0.00023276,3]
[385904474,1758125052659,480.0,0.00023276,3]
[385904475,1758125052986,480.0,0.00023276,3]
[385904476,1758125053536,480.0,0.00023276,3]
[385904477,1758125066047,480.0,0.00023276,3]
[385904478,1758125066082,480.0,0.00023276,3]
[385904479,1758125074558,480.0,0.00023276,3]
[385904480,1758125078334,226.6240629,0.00023276,3]
[385904481,1758125084648,480.0,0.00023276,3]
[385904482,1758125085050,480.0,0.00023276,3]
[385904483,1758125090238,356.51,0.00023276,3]
[385904484,1758125100608,150.0,0.00021709,2]
[385904485,1758125102028,480.0,0.00023276,3]
[385904486,1758125102925,300.0,0.00023276,2]
[385904487,1758125111552,7516.08,0.00023276,3]
[385904488,1758125118433,480.0,0.00023276,3]
[385904489,1758125119736,480.0,0.00023276,3]
[385904490,1758125124398,480.0,0.00023276,3]
[385904491,1758125128582,425.28,0.00023276,3]
[385904492,1758125130026,480.0,0.00023276,3]
[385904493,1758125131462,480.0,0.00023276,3]
[385904494,1758125139711,412.93,0.00023276,3]
[385904495,1758125147670,480.0,0.00023276,3]
[385904496,1758125152535,480.0,0.00023276,3]
[385904497,1758125153951,480.0,0.00023276,3]
[385904498,1758125153984,480.0,0.00023276,3]
[385904499,1758125155068,521.83,0.00023276,3]
[385904500,1758125160622,480.0,0.00023276,3]
[385904501,1758125162663,300.0,0.00023276,2]
[385904502,1758125165305,480.0,0.00023276,3]
[385904503,1758125167835,480.0,0.00023276,3]
[385904504,1758125169145,480.0,0.00023276,3]
[385904505,1758125175530,480.0,0.00023276,3]
[385904506,1758125176196,480.0,0.00023276,3]
[385904507,1758125176491,200.90059931,0.00023276,3]
[385904508,1758125186390,480.0,0.00023276,3]
[385904509,1758125191454,480.0,0.00023276,3]
[385904510,1758125193332,480.0,0.00023276,3]
[385904511,1758125198910,2471.68,0.00023276,3]
[385904512,1758125207020,480.0,0.00023276,3]
[385904513,1758125209640,490.6014927,0.00023276,3]
[385904514,1758125211377,480.0,0.00023276,3]
[385904515,1758125217385,480.0,0.00023276,3]
[385904516,1758125219031,480.0,0.00023276,3]
[385904517,1758125223226,480.0,0.00023276,3]
[385904518,1758125225806,480.0,0.00023276,3]
[385904519,1758125226098,300.0,0.00023276,2]
[385904520,1758125227121,-585.66311844,0.00023277,2]
[385904521,1758125227145,-14894.59110146,0.00023277,2]
[385904522,1758125227170,-613.76,0.00023277,3]
[385904523,1758125227194,-480.0,0.00023277,3]
[385904524,1758125227217,-480.0,0.00023277,3]
[385904525,1758125227240,-233.34517135,0.00023277,3]
[385904526,1758125227264,-480.0,0.00023277,3]
[385904527,1758125227287,-480.0,0.00023277,3]
[385904528,1758125227310,-480.0,0.00023277,3]
[385904529,1758125227334,-480.0,0.00023277,3]
[385904530,1758125227357,-480.0,0.00023277,3]
[385904531,1758125227379,-217.90857035,0.00023277,3]
[385904532,1758125227400,-160.0,0.00023422,2]
[385904533,1758125227423,-1000.0,0.00023438,2]
[385904534,1758125227445,-1000.0,0.00023438,2]
[385904535,1758125227467,-1000.0,0.00023438,2]
[385904536,1758125227488,-1000.0,0.00023438,2]
[385904537,1758125227512,-1000.0,0.00023438,2]
[385904538,1758125227536,-1000.0,0.00023438,2]
[385904539,1758125227557,-1000.0,0.00023438,2]
[385904540,1758125227579,-1000.0,0.00023438,2]
[385904541,1758125227604,-1000.0,0.00023438,2]
[385904542,1758125227626,-1000.0,0.00023438,2]
[385904543,1758125227647,-1000.0,0.00023438,2]
[385904544,1758125227669,-1000.0,0.00023438,2]
[385904545,1758125227692,-1000.0,0.00023438,2]
[385904546,1758125227712,-1000.0,0.00023438,2]
[385904547,1758125227733,-1000.0,0.00023438,2]
[385904548,1758125227759,-413.87109012,0.00023438,2]
[385904549,1758125227781,-154.15909353,0.00023446,2]
[385904550,1758125227803,-150.38800619,0.00023449,2]
[385904551,1758125227825,-452.85433119,0.00023545,2]
[385904552,1758125227847,-154.4629214,0.00023545,2]
[385904553,1758125227869,-500.0,0.00023545,2]
[385904554,1758125227890,-530.80778356,0.00023545,2]
[385904555,1758125227913,-500.0,0.00023545,2]
[385904556,1758125227934,-500.0,0.00023545,2]
[385904557,1758125227957,-500.0,0.00023545,2]
[385904558,1758125227978,-415.3688094,0.00023545,2]
[385904559,1758125228001,-96.67026775,0.00023545,2]
[385904560,1758125233591,480.0,0.00023276,3]
[385904561,1758125235643,480.0,0.00023276,3]
[385904562,1758125236170,588.18,0.00023276,3]
[385904563,1758125236260,185.0439101,0.0002255,2]
[385904564,1758125245935,480.0,0.00023276,3]
[385904565,1758125246762,1011.0,0.00023276,3]
[385904566,1758125248195,480.0,0.00023276,3]
[385904567,1758125254855,535.3,0.00023276,3]
[385904568,1758125257867,480.0,0.00023276,3]
[385904569,1758125264856,480.0,0.00023276,3]
[385904570,1758125269501,480.0,0.00023276,3]
[385904571,1758125273372,230.74040021,0.00023276,3]
[385904572,1758125276728,580.01,0.00023276,3]
[385904573,1758125294646,480.0,0.00023276,3]
[385904574,1758125302334,480.0,0.00023276,3]
[385904575,1758125305346,480.0,0.00023276,3]
[385904576,1758125305604,880.44,0.00023276,3]
[385904577,1758125310284,480.0,0.00023276,3]
[385904578,1758125313115,480.0,0.00023276,3]
[385904579,1758125314857,212.32,0.00023276,3]
[385904580,1758125327562,480.0,0.00023276,3]
[385904581,1758125329498,268.82614408,0.00023276,3]
[385904582,1758125332738,350.21,0.00023276,3]
[385904583,1758125343457,480.0,0.00023276,3]
[385904584,1758125344591,251.93821083,0.00023276,3]
[385904670,1758125438697,-0.63178917,0.00023276,3]
[385904671,1758125438707,-486.4,0.00023276,3]
[385904672,1758125438717,-480.0,0.00023276,3]
[385904673,1758125438726,-163.0095622,0.00023276,3]
[385904674,1758125438737,-236.9304378,0.00023276,3]
[385904675,1758125438746,-480.0,0.00023276,3]
[385904676,1758125438755,-480.0,0.00023276,3]
[385904677,1758125438764,-480.0,0.00023276,3]
[385904678,1758125438773,-480.0,0.00023276,3]
[385904679,1758125438783,-480.0,0.00023276,3]
[385904680,1758125438792,-480.0,0.00023276,3]
[385904681,1758125438802,-371.67,0.00023276,3]
[385904682,1758125438814,-968.87,0.00023276,3]
[385904683,1758125438827,-480.0,0.00023276,3]
[385904684,1758125438838,-1561.07567427,0.00023449,2]
[385904685,1758125438849,-300.0,0.00023547,2]
[385904686,1758125438861,-151.0,0.00023548,2]
[385904687,1758125438872,-151.0,0.00023548,2]
[385904688,1758125438882,-151.0,0.00023548,2]
[385904689,1758125438892,-151.0,0.00023548,2]
[385904690,1758125438903,-151.0,0.00023548,2]
[385904691,1758125438915,-151.0,0.00023548,2]
[385904692,1758125438926,-151.54952179,0.00023548,2]
[385904693,1758125438937,-500.0,0.00023548,2]
[385904694,1758125438948,-151.0,0.00023548,2]
[385904695,1758125438960,-151.0,0.00023548,2]
[385904696,1758125438970,-151.0,0.00023548,2]
[385904697,1758125438981,-142.90436619,0.00023548,2]
[385904698,1758125439371,-49.96162217,0.00023548,2]
[385904699,1758125439383,-1000.0,0.00023549,2]
[385904700,1758125439394,-480.0,0.00023549,3]
[385904701,1758125439406,-759.38,0.00023549,3]
[385904702,1758125439417,-480.0,0.00023549,3]
[385904703,1758125439430,-217.90857035,0.00023549,3]
[385904704,1758125439441,-2841.3277803,0.00023549,2]
[385904705,1758125439454,-855.2922197,0.00023549,2]
[385904706,1758125439464,-1106.95,0.00023549,3]
[385904707,1758125439474,-480.0,0.00023549,3]
[385904708,1758125439484,-480.0,0.00023549,3]
[385904709,1758125439494,-194.11698866,0.00023549,2]
[385904710,1758125439505,-151.0,0.00023549,2]
[385904711,1758125439516,-177.67235037,0.00023549,2]
[385904712,1758125439528,-151.0,0.00023549,2]
[385904713,1758125439539,-151.0,0.00023549,2]
[385904714,1758125439550,-151.0,0.00023549,2]
[385904715,1758125439566,-155.35674608,0.00023549,2]
[385904716,1758125439575,-188.30764878,0.00023549,2]
[385904717,1758125439586,-151.0,0.00023549,2]
[385904718,1758125439597,-151.0,0.00023549,2]
[385904719,1758125439607,-151.0,0.00023549,2]
[385904720,1758125439619,-500.0,0.00023549,2]
[385904721,1758125439629,-500.0,0.00023549,2]
[385904722,1758125439641,-500.0,0.00023549,2]
[385904723,1758125439653,-500.0,0.00023549,2]
[385904724,1758125439664,-500.0,0.00023549,2]
[385904725,1758125439675,-500.0,0.00023549,2]
[385904726,1758125439685,-151.0,0.00023549,2]
[385904727,1758125439695,-500.0,0.00023549,2]
[385904728,1758125439705,-500.0,0.00023549,2]
[385904729,1758125439715,-500.0,0.00023549,2]
[385904730,1758125439725,-500.0,0.00023549,2]
[385904731,1758125439735,-500.0,0.00023549,2]
[385904732,1758125439745,-500.0,0.00023549,2]
[385904733,1758125439755,-500.0,0.00023549,2]
[385904734,1758125439765,-500.0,0.00023549,2]
[385904735,1758125439775,-500.0,0.00023549,2]
[385904736,1758125439785,-641.53688094,0.00023549,2]
[385904737,1758125439796,-500.0,0.00023549,2]
[385904738,1758125439807,-500.0,0.00023549,2]
[385904739,1758125439817,-500.0,0.00023549,2]
[385904740,1758125439826,-500.0,0.00023549,2]
[385904741,1758125439837,-500.0,0.00023549,2]
[385904742,1758125439847,-500.0,0.00023549,2]
[385904743,1758125439857,-500.0,0.00023549,2]
[385904744,1758125439868,-500.0,0.00023549,2]
[385904745,1758125439878,-500.0,0.00023549,2]
[385904746,1758125439888,-500.0,0.00023549,2]
[385904747,1758125439898,-370.42122783,0.00023549,2]
[385904748,1758125439908,-500.0,0.00023549,2]
[385904749,1758125439919,-500.0,0.00023549,2]
[385904750,1758125439929,-500.0,0.00023549,2]
[385904751,1758125439939,-500.0,0.00023549,2]
[385904752,1758125439949,-500.0,0.00023549,2]
[385904753,1758125439961,-500.0,0.00023549,2]
[385904754,1758125439971,-500.0,0.00023549,2]
[385904755,1758125439981,-500.0,0.00023549,2]
[385904756,1758125439991,-500.0,0.00023549,2]
[385904757,1758125440001,-480.0,0.0002355,3]
[385904758,1758125440012,-480.0,0.0002355,3]
[385904759,1758125440022,-480.0,0.0002355,3]
[385904760,1758125440033,-480.0,0.0002355,3]
[385904761,1758125440043,-480.0,0.0002355,3]
[385904762,1758125440053,-480.0,0.0002355,3]
[385904763,1758125440063,-480.0,0.0002355,3]
[385904764,1758125440073,-480.0,0.0002355,3]
[385904765,1758125440084,-480.0,0.0002355,3]
[385904766,1758125440094,-480.0,0.0002355,3]
[385904767,1758125440104,-480.0,0.0002355,3]
[385904768,1758125440114,-480.0,0.0002355,3]
[385904769,1758125440125,-312.00534998,0.0002355,3]
[385904770,1758125440135,-480.0,0.0002355,3]
[385904771,1758125440145,-480.0,0.0002355,3]
[385904772,1758125440156,-480.0,0.0002355,3]
[385904773,1758125440166,-502.31883609,0.0002355,3]
[385904774,1758125440305,-480.0,0.0002355,3]
[385904775,1758125440319,-480.0,0.0002355,3]
[385904776,1758125440329,-480.0,0.0002355,3]
[385904777,1758125440340,-480.0,0.0002355,3]
[385904778,1758125440349,-423.40459866,0.0002355,3]
[385904779,1758125440359,-540.11091389,0.0002355,3]
[385904780,1758125440368,-588.64310097,0.0002355,3]
[385904781,1758125440377,-480.0,0.0002355,3]
[385904782,1758125440386,-394.09621607,0.0002355,3]
[385904783,1758125440395,-480.0,0.0002355,3]
[385904784,1758125440404,-480.0,0.0002355,3]
[385904785,1758125440414,-519.25,0.0002355,3]
[385904786,1758125440423,-530.4,0.0002355,3]
[385904787,1758125440432,-480.0,0.0002355,3]
[385904788,1758125440442,-480.0,0.0002355,3]
[385904789,1758125440451,-480.0,0.0002355,3]
[385904790,1758125440462,-480.0,0.0002355,3]
[385904791,1758125440471,-500.0,0.0002355,3]
[385904792,1758125440480,-480.0,0.0002355,3]
[385904793,1758125440489,-480.0,0.0002355,3]
[385904794,1758125440499,-480.0,0.0002355,3]
[385904795,1758125440508,-349.84,0.0002355,3]
[385904796,1758125440517,-242.1,0.0002355,3]
[385904797,1758125440526,-480.0,0.0002355,3]
[385904798,1758125440535,-480.0,0.0002355,3]
[385904799,1758125440544,-480.0,0.0002355,3]
[385904800,1758125440559,-376.86,0.0002355,3]
[385904801,1758125440572,-480.0,0.0002355,3]
[385904802,1758125440582,-480.0,0.0002355,3]
[385904803,1758125440591,-564.8,0.0002355,3]
[385904804,1758125440601,-615.62,0.0002355,3]
[385904805,1758125440611,-480.0,0.0002355,3]
[385904806,1758125440621,-480.0,0.0002355,3]
[385904807,1758125440631,-7516.08,0.0002355,3]
[385904808,1758125440640,-480.0,0.0002355,3]
[385904809,1758125440649,-259.17310064,0.0002355,3]
[385904810,1758125440659,-480.0,0.0002355,3]
[385904811,1758125440668,-480.0,0.0002355,3]
[385904812,1758125440678,-291.16,0.0002355,3]
[385904813,1758125440687,-480.0,0.0002355,3]
[385904814,1758125440696,-480.0,0.0002355,3]
[385904815,1758125440705,-442.26,0.0002355,3]
[385904816,1758125440715,-480.0,0.0002355,3]
[385904817,1758125440724,-859.84613449,0.0002355,3]
[385904818,1758125440737,-1611.83386551,0.0002355,3]
[385904819,1758125440746,-480.0,0.0002355,3]
[385904820,1758125440756,-480.0,0.0002355,3]
[385904821,1758125440765,-480.0,0.0002355,3]
[385904822,1758125440774,-588.18,0.0002355,3]
[385904823,1758125440784,-420.49,0.0002355,3]
[385904824,1758125440793,-480.0,0.0002355,3]
[385904825,1758125440803,-480.0,0.0002355,3]
[385904826,1758125440812,-234.56420199,0.0002355,3]
[385904827,1758125440824,-354.59579801,0.0002355,3]
[385904828,1758125440833,-480.0,0.0002355,3]
[385904829,1758125440842,-580.01,0.0002355,3]
[385904830,1758125440852,-480.0,0.0002355,3]
[385904831,1758125440861,-45.79709468,0.0002355,3]
[385904832,1758125440873,-434.20290532,0.0002355,3]
[385904833,1758125440882,-250.93994008,0.0002355,3]
[385904834,1758125440894,-229.06005992,0.0002355,3]
[385904835,1758125440903,-880.44,0.0002355,3]
[385904836,1758125440912,-480.0,0.0002355,3]
[385904837,1758125440921,-480.0,0.0002355,3]
[385904838,1758125440930,-421.52675165,0.0002355,3]
[385904839,1758125440939,-486.4,0.0002355,3]
[385904840,1758125440949,-480.0,0.0002355,3]
[385904841,1758125440958,-480.0,0.0002355,3]
[385904842,1758125440967,-480.0,0.0002355,3]
[385904843,1758125440976,-225.16,0.0002355,3]
[385904844,1758125440987,-480.0,0.0002355,3]
[385904845,1758125440998,-572.78,0.0002355,3]
[385904846,1758125441007,-968.87,0.0002355,3]
[385904847,1758125441017,-176.56,0.0002355,3]
[385904848,1758125441026,-480.0,0.00023551,3]
[385904849,1758125441035,-480.0,0.00023551,3]
[385904850,1758125441044,-480.0,0.00023551,3]
[385904851,1758125441053,-1000.0,0.00023551,2]
[385904852,1758125441062,-1336.0,0.00023562,2]
[385904853,1758125441071,-500.0,0.00023573,2]
[385904854,1758125441081,-500.0,0.00023573,2]
[385904855,1758125441090,-500.0,0.00023573,2]
[385904856,1758125441099,-500.0,0.00023573,2]
[385904857,1758125441108,-176.0,0.00023604,2]
[385904858,1758125441118,-664.0,0.00023639,2]
[385904859,1758125441127,-600.0,0.00023742,20]
[385904860,1758125441137,-151.0,0.00023822,2]
[385904861,1758125441146,-151.0,0.00023822,2]
[385904862,1758125441155,-500.0,0.00023822,2]
[385904863,1758125441164,-151.0,0.00023822,2]
[385904864,1758125441173,-151.0,0.00023822,2]
[385904865,1758125441184,-151.0,0.00023822,2]
[385904866,1758125441194,-151.0,0.00023823,2]
[385904867,1758125441204,-151.0,0.00023823,2]
[385904868,1758125441213,-151.0,0.00023823,2]
[385904869,1758125441222,-163.0,0.00023823,2]
[385904870,1758125441231,-151.0,0.00023823,2]
[385904871,1758125441241,-151.0,0.00023823,2]
[385904872,1758125441251,-480.0,0.00023823,3]
[385904873,1758125441260,-759.38,0.00023823,3]
[385904874,1758125441269,-480.0,0.00023823,3]
[385904875,1758125441279,-1106.95,0.00023823,3]
[385904876,1758125441288,-480.0,0.00023823,3]
[385904877,1758125441297,-480.0,0.00023823,3]
[385904878,1758125441306,-480.0,0.00023823,3]
[385904879,1758125441316,-480.0,0.00023824,3]
[385904880,1758125441325,-507.48,0.00023824,3]
[385904881,1758125441334,-150.57324835,0.00023824,3]
[385904882,1758125441343,-277.16,0.00023824,3]
[385904883,1758125441353,-480.0,0.00023824,3]
[385904884,1758125441363,-480.0,0.00023824,3]
[385904885,1758125441371,-290.24,0.00023824,2]
[385904886,1758125441381,-480.0,0.00023824,3]
[385904887,1758125441390,-547.28,0.00023824,3]
[385904888,1758125441399,-480.0,0.00023824,3]
[385904889,1758125441408,-480.0,0.00023824,3]
[385904890,1758125441417,-346.86,0.00023824,3]
[385904891,1758125441426,-232.14,0.00023824,3]
[385904892,1758125441435,-480.0,0.00023824,3]
[385904893,1758125441445,-480.0,0.00023824,3]
[385904894,1758125441454,-328.36,0.00023824,3]
[385904895,1758125441463,-7516.08,0.00023824,3]
[385904896,1758125441473,-332.13415538,0.00023824,3]
[385904897,1758125441482,-480.0,0.00023824,3]
[385904898,1758125441492,-480.0,0.00023824,3]
[385904899,1758125441501,-319.97,0.00023824,3]
[385904900,1758125441511,-480.0,0.00023824,3]
[385904901,1758125441520,-2471.68,0.00023824,3]
[385904902,1758125441529,-480.0,0.00023824,3]
[385904903,1758125441539,-218.52089421,0.00023824,3]
[385904904,1758125441549,-588.18,0.00023824,3]
[385904905,1758125441561,-480.0,0.00023824,3]
[385904906,1758125441571,-166.48,0.00023824,3]
[385904907,1758125441580,-480.0,0.00023824,3]
[385904908,1758125441589,-580.01,0.00023824,3]
[385904909,1758125441598,-480.0,0.00023824,3]
[385904910,1758125441608,-480.0,0.00023824,3]
[385904911,1758125441617,-257.0,0.00023824,3]
[385904912,1758125441627,-880.44,0.00023824,3]
[385904913,1758125441637,-480.0,0.00023824,3]
[385904914,1758125441647,-480.0,0.00023824,3]
[385904915,1758125441656,-486.4,0.00023824,3]
[385904916,1758125441665,-224.8,0.00023824,3]
[385904917,1758125441674,-480.0,0.00023824,3]
[385904918,1758125441683,-480.0,0.00023824,3]
[385904919,1758125441693,-216.24,0.00023824,3]
[385904920,1758125441702,-968.87,0.00023824,3]
[385904921,1758125441712,-480.0,0.00023825,3]
[385904922,1758125441721,-493.6,0.00023825,3]
[385904923,1758125441731,-197.42,0.00023873,2]
[385904924,1758125441740,-627.34585844,0.00023896,2]
[385904925,1758125441750,-187.78599133,0.00023922,2]
[385904926,1758125441759,-229.71890038,0.00023922,2]
[385904927,1758125441768,-500.0,0.00023922,2]
[385904928,1758125441778,-500.0,0.00023922,2]
[385904929,1758125441787,-500.0,0.00023922,2]
[385904930,1758125441796,-500.0,0.00023922,2]
[385904931,1758125441806,-151.0,0.00023923,2]
[385904932,1758125441815,-151.0,0.00023923,2]
[385904933,1758125441824,-151.0,0.00023923,2]
[385904934,1758125441834,-151.0,0.00023923,2]
[385904935,1758125441843,-500.0,0.00023923,2]
[385904936,1758125441852,-151.0,0.00023923,2]
[385904937,1758125441861,-500.0,0.00023923,2]
[385904938,1758125441870,-374.47588989,0.00023923,2]
[385904939,1758125441879,-166.15641849,0.00023923,2]
[385904940,1758125441889,-500.0,0.00023923,2]
[385904941,1758125441899,-500.0,0.00023923,2]
[385904942,1758125441908,-500.0,0.00023923,2]
[385904943,1758125441918,-500.0,0.00023923,2]
[385904944,1758125441927,-500.0,0.00023923,2]
[385904945,1758125441937,-500.0,0.00023923,2]
[385904946,1758125441946,-500.0,0.00023923,2]
[385904947,1758125441955,-500.0,0.00023923,2]
[385904948,1758125441964,-500.0,0.00023923,2]
[385904949,1758125441974,-500.0,0.00023923,2]
[385904950,1758125441983,-734.29,0.00023927,3]
[385904951,1758125441992,-367.14,0.00023927,3]
[385904952,1758125442002,-183.57,0.00023927,3]
[385904953,1758125442012,-42814.156587,0.00023937,2]
[385904954,1758125442021,-8225.6084463,0.00023937,2]
[385904955,1758125442030,-159.4951462,0.00023937,2]
[385904956,1758125442039,-691.24,0.00023967,3]
[385904957,1758125442049,-500.0,0.00023973,2]
[385904958,1758125442060,-500.0,0.00023973,2]
[385904959,1758125442070,-500.0,0.00023973,2]
[385904960,1758125442079,-465.23206083,0.00023973,2]
[385904961,1758125442089,-500.0,0.00023973,2]
[385904962,1758125442099,-500.0,0.00023973,2]
[385904963,1758125442108,-501.99400742,0.00023973,2]
[385904964,1758125442119,-500.0,0.00023973,2]
[385904965,1758125442128,-500.0,0.00023973,2]
[385904966,1758125442137,-500.0,0.00023973,2]
[385904967,1758125442146,-500.0,0.00023973,2]
[385904968,1758125442156,-160.64292061,0.00023973,2]
[385904969,1758125442165,-500.96478059,0.00023973,2]
[385904970,1758125442174,-500.0,0.00023973,2]
[385904971,1758125442184,-322.33669596,0.00023973,2]
[385904972,1758125442195,-715.4908394,0.00023973,2]
[385904973,1758125442205,-353.83924678,0.00023973,2]
[385904974,1758125442215,-634.47633157,0.00023973,2]
[385904975,1758125442226,-1413.94163015,0.00023973,2]
[385904976,1758125442236,-1288.05743706,0.00023973,2]